bitfinex/quotes_SOLUSD_20240809
["timestamp","ask_amount","ask_price","bid_price","bid_amount"]
[1723178504717,18.51,157.88,157.85,6.335]
[1723178504942,18.51,157.88,157.84,6.3354]
[1723178505646,18.51,157.88,157.84,24.8454]
[1723178505821,18.51,157.88,157.85,6.335]
[1723178506219,18.51,157.89,157.87,6.3343]
[1723178506420,18.51,157.9,157.87,6.3343]
[1723178506624,6.57872666,157.95,157.87,6.3343]
[1723178506841,18.51,157.9,157.87,6.3343]
[1723178507347,18.51,157.9,157.86,16.3825]
[1723178507744,18.51,157.9,157.86,22.717]
[1723178508723,24.843,157.91,157.86,41.227]
[1723178509046,18.51,157.91,157.87,6.3341]
[1723178509748,18.51,157.9,157.87,6.3341]
[1723178510259,6.3323,157.92,157.87,6.3341]
[1723178510555,18.51,157.91,157.87,6.3341]
[1723178511229,18.51,157.91,157.87,24.8441]
[1723178511431,18.51,157.9,157.86,47.8087]
[1723178511957,24.8444,157.87,157.82,46.0943]
[1723178512255,18.51,157.84,157.82,21.2484]
[1723178512454,18.51,157.83,157.82,15.1347]
[1723178512747,15.8336,157.9,157.82,15.1347]
[1723178512748,6.3343,157.87,157.82,15.1347]
[1723178512947,38.51,157.86,157.83,6.3358]
[1723178513162,18.51,157.86,157.83,6.3358]
[1723178513330,6.334,157.88,157.83,6.3358]
[1723178513331,18.51,157.85,157.83,6.3358]
[1723178513658,18.51,157.85,157.82,15.1347]
[1723178513957,18.51,157.84,157.82,15.1347]
[1723178514127,18.51,157.83,157.82,15.1347]
[1723178514640,18.51,157.84,157.82,15.1347]
[1723178514947,18.51,157.85,157.82,15.1347]
[1723178515157,18.51,157.86,157.83,6.3359]
[1723178515347,18.51,157.87,157.84,6.3354]
[1723178515533,18.51,157.86,157.84,6.3354]
[1723178515728,27.01,157.87,157.82,21.4706]
[1723178516049,6.3349,157.86,157.82,15.1347]
[1723178516360,27.01,157.85,157.82,15.1347]
[1723178517163,27.01,157.85,157.82,21.471]
[1723178517363,27.01,157.9,157.85,15.8369]
[1723178517658,27.01,157.88,157.82,37.3116]
[1723178517829,27.01,157.86,157.82,30.9754]
[1723178518359,33.3447,157.86,157.82,30.9754]
[1723178519249,33.3447,157.86,157.82,15.1347]
[1723178519557,27.01,157.84,157.8,6.337]
[1723178519758,27.01,157.84,157.81,6.3365]
[1723178522038,27.01,157.84,157.8,6.337]
[1723178522256,27.01,157.84,157.81,6.3366]
[1723178522842,27.01,157.86,157.81,6.3366]
[1723178523141,21.58392104,157.85,157.81,6.3366]
[1723178523849,20.0,157.85,157.81,6.3366]
[1723178524365,1.58399625,157.95,157.83,15.9607]
[1723178524570,38.42845508,157.92,157.84,6.0788]
[1723178524741,34.92592465,157.92,157.87,6.3342]
[1723178524937,28.59342465,157.92,157.87,6.3342]
[1723178525137,28.59342465,157.92,157.87,6.3339]
[1723178525439,34.92592465,157.92,157.87,6.3339]
[1723178525647,34.92592465,157.92,157.86,22.1706]
[1723178525846,34.92592465,157.92,157.87,6.3343]
[1723178526229,20.0,157.91,157.88,6.3339]
[1723178526452,28.59326375,157.9,157.84,6.0788]
[1723178526659,28.59326375,157.9,157.85,6.3349]
[1723178526960,28.59326375,157.9,157.86,6.3347]
[1723178527263,27.01,157.9,157.86,6.3347]
[1723178527461,28.59343775,157.9,157.86,6.3347]
[1723178527636,27.01,157.9,157.86,6.3347]
[1723178528752,20.0,157.91,157.87,6.3341]
[1723178528952,21.58341368,157.91,157.87,6.3341]
[1723178531246,20.0,157.91,157.88,6.3338]
[1723178531639,21.58332895,157.91,157.87,6.3343]
[1723178532565,21.58332895,157.91,157.86,22.1704]
[1723178532757,27.91602895,157.91,157.86,22.1704]
[1723178532940,21.58332895,157.91,157.87,6.3341]
[1723178533335,21.58332895,157.91,157.88,6.3337]
[1723178534469,21.58332895,157.91,157.87,6.3342]
[1723178534646,20.0,157.91,157.86,15.8358]
[1723178535646,38.51,157.91,157.86,34.3458]
[1723178535846,18.51,157.89,157.86,15.8358]
[1723178536360,18.51,157.89,157.85,6.3351]
[1723178536553,24.8434,157.9,157.85,24.8451]
[1723178536870,18.51,157.9,157.86,6.3347]
[1723178537588,26.42655737,157.9,157.85,40.682]
[1723178537749,18.51,157.88,157.85,15.837]
[1723178538259,18.51,157.89,157.85,15.837]
[1723178540058,18.51,157.89,157.85,22.172]
[1723178540452,20.0,157.91,157.83,34.4707]
[1723178540453,18.51,157.88,157.83,15.9607]
[1723178540662,18.51,157.87,157.83,15.9607]
[1723178541054,18.51,157.88,157.84,6.3355]
[1723178541361,18.51,157.87,157.84,6.3355]
[1723178543072,74.04,157.92,157.83,15.9607]
[1723178543073,11.83060382,157.96,157.95,6.3311]
[1723178543273,18.51,158.05,157.98,15.8247]
[1723178543461,18.51,158.01,157.96,18.51]
[1723178543778,18.51,158.0,157.96,6.3303]
[1723178543981,6.3287,158.02,157.97,6.3302]
[1723178544170,18.51,158.01,157.98,6.3298]
[1723178544774,18.51,158.0,157.97,6.3302]
[1723178545163,6.3279,158.03,157.98,6.3297]
[1723178545365,18.51,158.03,157.99,7.595156]
[1723178545758,33.2775,158.04,157.98,6.3298]
[1723178545957,6.3279,158.03,157.98,6.3298]
[1723178546183,26.95,158.02,157.97,22.1558]
[1723178547270,26.95,157.99,157.93,15.829]
[1723178547457,26.95,157.95,157.89,21.4465]
[1723178548088,26.95,157.95,157.9,6.3331]
[1723178548578,26.95,157.95,157.91,6.3327]
[1723178550177,33.2812,157.95,157.89,43.6127]
[1723178550379,26.95,157.93,157.89,43.6127]
[1723178550687,26.95,157.91,157.89,15.8329]
[1723178551000,26.95,157.91,157.85,22.7054]
[1723178551001,26.95,157.91,157.85,38.5422]
[1723178551194,6.3327,157.91,157.86,6.3347]
[1723178551398,26.95,157.89,157.86,6.3347]
[1723178552686,26.95,157.87,157.85,15.8368]
[1723178552895,26.95,157.87,157.84,6.3351]
[1723178553098,26.95,157.87,157.83,6.3358]
[1723178553997,26.95,157.91,157.88,22.1681]
[1723178555284,26.95,157.91,157.89,6.3331]
[1723178555591,26.95,157.93,157.88,15.8343]
[1723178555799,20.0,157.92,157.88,15.8343]
[1723178556191,26.95,157.91,157.88,15.8343]
[1723178556503,33.2827,157.91,157.86,6.3346]
[1723178556897,26.95,157.91,157.87,6.3341]
[1723178558500,6.3343,157.87,157.82,6.3361]
[1723178558695,26.95,157.89,157.81,22.2118]
[1723178558889,26.95,157.89,157.83,45.0]
[1723178559091,33.2843,157.87,157.82,15.8398]
[1723178559590,26.95,157.87,157.83,6.3358]
[1723178559786,26.95,157.87,157.84,6.3354]
[1723178560183,26.95,157.87,157.83,6.3358]
[1723178560695,26.95,157.87,157.84,6.3353]
[1723178560895,26.95,157.89,157.84,6.3353]
[1723178561091,20.0,157.88,157.84,6.3353]
[1723178561686,20.0,157.88,157.83,6.3358]
[1723178561906,20.0,157.88,157.84,6.3354]
[1723178562403,26.95,157.87,157.82,15.8398]
[1723178562705,26.95,157.85,157.82,15.8398]
[1723178564186,26.95,157.85,157.81,6.3366]
[1723178564400,26.95,157.85,157.78,15.8438]
[1723178564804,33.2852,157.85,157.8,6.3369]
[1723178565402,26.95,157.85,157.8,6.3369]
[1723178566408,26.95,157.85,157.78,15.8438]
[1723178566409,6.3356,157.84,157.79,6.3374]
[1723178566594,26.95,157.85,157.78,15.8438]
[1723178566795,33.2851,157.85,157.8,6.3367]
[1723178567513,33.2851,157.85,157.8,22.1789]
[1723178568013,26.95,157.85,157.8,22.1789]
[1723178568218,26.95,157.83,157.78,6.3376]
[1723178568388,6.3363,157.82,157.77,44.2573]
[1723178568590,26.95,157.81,157.77,22.184]
[1723178569915,26.95,157.81,157.76,6.3386]
[1723178570300,26.95,157.81,157.77,6.3382]
[1723178571126,26.95,157.79,157.74,15.8487]
[1723178572102,26.95,157.79,157.77,6.3383]
[1723178572592,26.95,157.79,157.74,15.8487]
[1723178573198,26.95,157.79,157.75,6.3391]
[1723178573402,26.95,157.79,157.74,15.8487]
[1723178574002,26.95,157.81,157.74,15.8487]
[1723178574318,26.95,157.81,157.77,6.3383]
[1723178574815,26.95,157.81,157.76,6.3386]
[1723178575016,26.95,157.81,157.77,6.3382]
[1723178575400,26.95,157.81,157.78,6.3378]
[1723178578337,26.95,157.81,157.79,6.3372]
[1723178578628,26.95,157.81,157.78,6.3378]
[1723178578799,33.2867,157.81,157.76,22.1845]
[1723178579002,26.95,157.81,157.77,6.3381]
[1723178579728,26.95,157.81,157.78,6.3378]
[1723178581434,26.95,157.81,157.76,15.8459]
[1723178581435,26.95,157.81,157.77,6.3382]
[1723178582328,26.95,157.79,157.77,6.3382]
[1723178583312,26.95,157.79,157.76,22.1846]
[1723178583822,26.95,157.78,157.74,6.3392]
[1723178583999,26.95,157.77,157.74,6.3392]
[1723178585131,26.95,157.77,157.73,15.8496]
[1723178586521,26.95,157.77,157.73,22.1894]
[1723178587023,26.95,157.77,157.74,6.3395]
[1723178589107,26.95,157.77,157.73,22.1895]
[1723178589311,26.95,157.77,157.69,70.7720315]
[1723178589541,33.2886,157.77,157.72,6.34]
[1723178589715,18.55,157.74,157.72,6.34]
[1723178589922,18.55,157.75,157.72,6.34]
[1723178590118,18.55,157.75,157.73,6.3399]
[1723178590820,18.55,157.74,157.73,6.3399]
[1723178591019,18.55,157.74,157.72,6.3402]
[1723178591224,16.6451,157.8,157.71,22.1918]
[1723178591225,18.55,157.73,157.71,22.1918]
[1723178591914,18.55,157.72,157.69,17.1003315]
[1723178592247,18.55,157.71,157.69,7.1516315]
[1723178593149,18.55,157.7,157.69,7.1516315]
[1723178593444,18.55,157.7,157.69,0.8104315]
[1723178595231,44.8911,157.7,157.69,0.8104315]
[1723178595534,69.5171,157.7,157.69,0.8104315]
[1723178595739,6.3422,157.68,157.62,6.344]
[1723178595916,18.55,157.64,157.62,6.344]
[1723178596251,18.55,157.63,157.61,22.2058]
[1723178596459,18.55,157.62,157.61,22.2058]
[1723178596742,18.55,157.62,157.58,6.3459]
[1723178596942,16.4551,157.68,157.59,15.863]
[1723178597140,20.0,157.67,157.63,6.3438]
[1723178597337,18.55,157.64,157.63,6.3438]
[1723178597528,18.55,157.64,157.62,22.205]
[1723178597733,27.08,157.64,157.62,22.205]
[1723178598032,27.08,157.65,157.62,22.205]
[1723178598441,27.08,157.65,157.62,15.8607]
[1723178598752,27.08,157.64,157.62,15.8607]
[1723178598929,27.08,157.64,157.62,22.205]
[1723178599121,26.3425,157.67,157.62,22.205]
[1723178599449,27.08,157.65,157.62,22.205]
[1723178599765,27.08,157.65,157.63,6.3438]
[1723178599939,27.08,157.66,157.63,6.3438]
[1723178600141,27.08,157.67,157.64,6.3435]
[1723178600342,27.08,157.7,157.64,15.858]
[1723178600528,27.08,157.7,157.66,6.3427]
[1723178600719,15.9593,157.72,157.64,15.858]
[1723178600720,27.08,157.72,157.67,15.8558]
[1723178601123,27.08,157.72,157.68,6.3415]
[1723178601328,27.08,157.73,157.68,6.3415]
[1723178601542,27.08,157.72,157.68,6.3415]
[1723178601745,27.08,157.72,157.67,15.8558]
[1723178601746,27.08,157.72,157.69,6.3414]
[1723178602046,27.08,157.73,157.69,6.3414]
[1723178602432,33.4196,157.74,157.69,6.3414]
[1723178602738,27.08,157.74,157.7,6.3409]
[1723178602936,6.3392,157.75,157.71,6.3405]
[1723178602937,27.08,157.75,157.71,6.3405]
[1723178603151,33.4192,157.75,157.7,6.341]
[1723178603348,27.08,157.73,157.69,15.853]
[1723178604061,6.3403,157.72,157.66,22.1992]
[1723178604241,6.3403,157.72,157.67,6.3422]
[1723178604438,27.08,157.73,157.68,6.3416]
[1723178604749,27.08,157.73,157.69,15.8538]
[1723178604957,27.08,157.73,157.7,6.341]
[1723178605256,27.08,157.73,157.69,22.1953]
[1723178607439,9.94099744,157.76,157.71,15.8508]
[1723178607760,27.08,157.77,157.73,6.3398]
[1723178607930,20.0,157.76,157.73,6.3398]
[1723178608130,20.0,157.76,157.71,15.8508]
[1723178608543,6.3383,157.77,157.72,6.34]
[1723178608753,33.4179,157.79,157.74,6.3394]
[1723178609139,27.08,157.77,157.71,15.8508]
[1723178609332,6.3388,157.76,157.71,22.1911]
[1723178609533,33.4184,157.77,157.71,22.1911]
[1723178609768,33.4184,157.77,157.72,6.3401]
[1723178610760,6.3387,157.76,157.71,22.1915]
[1723178611056,27.08,157.77,157.71,15.8508]
[1723178611972,33.4183,157.77,157.72,6.3403]
[1723178612270,27.08,157.77,157.71,15.8508]
[1723178612947,33.4184,157.77,157.72,6.3399]
[1723178613146,6.3384,157.77,157.72,6.3399]
[1723178613866,33.4184,157.77,157.72,6.3399]
[1723178614347,27.08,157.77,157.72,6.3403]
[1723178614663,27.08,157.77,157.73,6.3399]
[1723178615251,27.08,157.75,157.68,15.8547]
[1723178615773,33.4194,157.75,157.7,6.3411]
[1723178616471,27.08,157.75,157.71,6.3405]
[1723178616643,27.08,157.77,157.71,15.8518]
[1723178616839,20.0,157.76,157.72,6.3402]
[1723178617064,20.0,157.76,157.71,22.1924]
[1723178617065,26.3387,157.76,157.71,22.1924]
[1723178617285,26.3387,157.76,157.71,22.1922]
[1723178617571,26.3387,157.76,157.71,15.8518]
[1723178617572,47.08,157.76,157.71,15.8518]
[1723178617940,53.4187,157.76,157.71,22.1924]
[1723178618977,47.08,157.76,157.72,6.3402]
[1723178619147,6.3392,157.75,157.71,15.8518]
[1723178619473,27.08,157.72,157.68,22.1966]
[1723178619851,20.0,157.76,157.68,15.8548]
[1723178620042,27.08,157.75,157.7,6.3407]
[1723178620239,20.0,157.79,157.68,15.8548]
[1723178620240,27.08,157.73,157.68,15.8548]
[1723178620442,27.08,157.73,157.68,22.1967]
[1723178620674,27.08,157.73,157.69,6.3414]
[1723178621071,27.08,157.73,157.68,15.8548]
[1723178621072,27.08,157.73,157.7,6.3411]
[1723178621267,27.08,157.73,157.69,6.3415]
[1723178621574,27.08,157.73,157.68,15.8548]
[1723178621575,27.08,157.73,157.68,22.1963]
[1723178621770,27.08,157.73,157.68,15.8548]
[1723178621961,27.08,157.75,157.7,6.3407]
[1723178622160,27.08,157.77,157.71,15.8515]
[1723178622361,27.08,157.77,157.73,6.3399]
[1723178623090,27.08,157.77,157.74,6.3394]
[1723178623370,27.08,157.77,157.71,15.8515]
[1723178623577,33.4184,157.77,157.71,15.8515]
[1723178624169,25.21204904,157.8,157.76,6.3385]
[1723178624367,27.08,157.81,157.73,27.08]
[1723178624572,33.4167,157.81,157.75,15.847]
[1723178624744,33.4167,157.81,157.75,22.1858]
[1723178625147,6.3372,157.8,157.75,15.847]
[1723178625676,6.3372,157.8,157.75,22.186]
[1723178626065,27.08,157.79,157.72,37.7557]
[1723178626271,27.08,157.77,157.72,15.8508]
[1723178626491,33.4183,157.77,157.72,22.1909]
[1723178626685,27.08,157.77,157.72,22.1909]
[1723178626984,27.08,157.77,157.73,6.3399]
[1723178628484,33.4183,157.77,157.72,22.1911]
[1723178629101,27.08,157.77,157.73,6.3397]
[1723178629597,27.08,157.77,157.72,22.1911]
[1723178630981,27.08,157.77,157.72,15.8508]
[1723178631765,27.08,157.77,157.73,6.3396]
[1723178631969,27.08,157.79,157.75,15.8473]
[1723178632492,27.08,157.81,157.76,6.3386]
[1723178632671,20.0,157.8,157.76,6.3386]
[1723178634185,20.0,157.8,157.77,6.3381]
[1723178634690,27.08,157.81,157.77,6.3381]
[1723178635282,27.08,157.81,157.75,15.8473]
[1723178635283,27.08,157.81,157.78,6.3379]
[1723178635467,6.3359,157.83,157.79,6.3374]
[1723178635468,27.08,157.83,157.79,6.3374]
[1723178636284,27.08,157.83,157.8,6.3371]
[1723178636583,27.08,157.83,157.79,6.3374]
[1723178636793,27.08,157.83,157.79,15.8429]
[1723178636978,27.08,157.85,157.79,15.8429]
[1723178637188,20.0,157.84,157.81,6.3364]
[1723178637477,20.0,157.84,157.79,22.18]
[1723178637677,20.0,157.84,157.8,6.3369]
[1723178639782,27.08,157.85,157.81,6.3365]
[1723178639986,27.08,157.85,157.79,22.1801]
[1723178639987,33.4151,157.85,157.79,22.1801]
[1723178640194,33.4151,157.85,157.79,22.1804]
[1723178641300,33.4151,157.85,157.8,6.3369]
[1723178641483,27.08,157.85,157.81,6.3366]
[1723178642379,27.08,157.87,157.82,6.3362]
[1723178642580,33.64338772,157.88,157.82,15.8406]
[1723178642901,27.08,157.88,157.84,6.3354]
[1723178643471,27.08,157.88,157.82,15.8406]
[1723178643472,33.4139,157.88,157.82,22.1766]
[1723178643790,33.4139,157.88,157.83,6.3358]
[1723178644706,33.4139,157.88,157.84,6.3354]
[1723178644707,27.08,157.88,157.84,6.3354]
[1723178645076,27.08,157.88,157.83,6.3358]
[1723178645276,33.4142,157.88,157.83,6.3358]
[1723178645492,33.4142,157.88,157.82,22.1768]
[1723178645794,27.08,157.88,157.83,6.3357]
[1723178646002,27.08,157.88,157.84,6.3351]
[1723178646385,27.08,157.88,157.83,6.3358]
[1723178646777,27.08,157.88,157.84,6.3353]
[1723178646981,6.3335,157.89,157.84,6.3353]
[1723178646982,27.08,157.89,157.84,6.3353]
[1723178647312,20.0,157.88,157.84,6.3353]
[1723178648598,20.0,157.88,157.83,6.3359]
[1723178648780,20.0,157.88,157.84,6.3353]
[1723178649099,27.08,157.87,157.82,15.8406]
[1723178649299,33.4143,157.87,157.82,15.8406]
[1723178649809,18.52,157.86,157.82,22.1767]
[1723178650399,18.52,157.83,157.79,6.3374]
[1723178650698,18.52,157.82,157.79,6.3374]
[1723178650998,20.0,157.88,157.79,18.52]
[1723178651202,18.52,157.86,157.82,6.3362]
[1723178651503,18.52,157.86,157.81,18.52]
[1723178651504,18.52,157.84,157.81,6.3366]
[1723178651799,33.3448,157.86,157.81,6.3366]
[1723178652173,33.3448,157.86,157.8,22.1789]
[1723178652776,27.01,157.88,157.83,6.3355]
[1723178653009,27.01,157.88,157.8,42.8518]
[1723178653010,27.01,157.88,157.84,6.3354]
[1723178654612,27.01,157.88,157.83,6.3358]
[1723178655289,27.01,157.88,157.84,6.3354]
[1723178655602,33.3431,157.9,157.85,6.3351]
[1723178655786,27.01,157.9,157.86,6.3345]
[1723178657002,27.01,157.9,157.85,22.1725]
[1723178657335,6.3327,157.91,157.85,22.1725]
[1723178657512,26.3331,157.9,157.85,22.1725]
[1723178659519,20.0,157.9,157.85,22.1725]
[1723178660487,36.94095115,157.92,157.88,6.3335]
[1723178660696,33.3415,157.94,157.89,6.3335]
[1723178660895,6.3311,157.95,157.9,6.333]
[1723178661108,6.3311,157.95,157.89,6.3334]
[1723178661508,6.3315,157.94,157.89,6.3334]
[1723178662330,6.3315,157.94,157.89,15.6564]
[1723178662495,6.3331,157.91,157.85,15.1063]
[1723178662699,6.3327,157.91,157.85,21.441]
[1723178663307,27.01,157.92,157.85,15.1063]
[1723178663627,6.3327,157.91,157.86,6.3347]
[1723178664017,33.3423,157.92,157.86,6.3347]
[1723178665714,33.3423,157.92,157.87,6.3341]
[1723178666718,27.01,157.91,157.87,6.3341]
[1723178667536,33.3431,157.9,157.85,15.1063]
[1723178668309,33.3431,157.9,157.85,21.441]
[1723178668614,27.01,157.91,157.86,6.3346]
[1723178668811,33.3423,157.92,157.87,6.3341]
[1723178669336,27.01,157.91,157.87,6.3341]
[1723178670009,33.3427,157.91,157.86,6.3347]
[1723178670614,27.01,157.91,157.85,21.4413]
[1723178670827,33.343,157.91,157.86,6.3346]
[1723178671734,27.01,157.9,157.86,6.3346]
[1723178671935,27.01,157.88,157.85,15.1063]
[1723178672238,33.3444,157.87,157.83,6.3064]
[1723178672627,33.3444,157.87,157.82,6.3363]
[1723178672840,27.01,157.87,157.83,6.3358]
[1723178673341,27.01,157.88,157.84,6.3352]
[1723178673518,27.01,157.89,157.85,6.335]
[1723178673717,18.52,157.88,157.85,6.335]
[1723178673937,18.52,157.89,157.86,6.3343]
[1723178674128,18.52,157.91,157.86,18.52]
[1723178674536,18.52,157.91,157.88,6.3335]
[1723178674745,18.52,157.91,157.88,6.3338]
[1723178675341,18.52,157.92,157.88,6.3335]
[1723178675549,18.52,157.92,157.89,6.3331]
[1723178675924,32.83508002,157.98,157.88,6.3338]
[1723178676227,18.52,157.92,157.89,6.3332]
[1723178677434,18.52,157.92,157.88,6.3338]
[1723178677636,6.3315,157.94,157.89,6.3335]
[1723178677823,6.3315,157.94,157.89,24.8535]
[1723178677824,20.0,157.93,157.89,24.8535]
[1723178678033,20.0,157.93,157.89,6.3335]
[1723178678034,38.52,157.93,157.89,6.3335]
[1723178678216,38.52,157.93,157.9,6.333]
[1723178678418,38.52,157.93,157.89,6.3334]
[1723178679046,38.52,157.93,157.88,33.6975]
[1723178679542,38.52,157.93,157.88,40.0313]
[1723178679752,18.52,157.92,157.88,21.5113]
[1723178680049,20.0,157.93,157.88,15.1775]
[1723178680050,18.52,157.91,157.88,15.1775]
[1723178680230,20.0,157.93,157.88,15.1775]
[1723178680434,18.52,157.92,157.88,15.1775]
[1723178680750,18.52,157.92,157.88,21.511]
[1723178681341,18.52,157.92,157.88,15.1775]
[1723178681850,18.52,157.92,157.88,21.5113]
[1723178682950,26.332,157.93,157.88,21.5113]
[1723178683157,18.52,157.92,157.89,6.3334]
[1723178683942,38.52,157.93,157.89,6.3334]
[1723178684152,24.8511,157.95,157.9,18.52]
[1723178684330,18.52,157.95,157.91,6.3327]
[1723178686261,18.52,157.95,157.92,6.3321]
[1723178686441,18.52,157.95,157.91,24.8526]
[1723178686639,18.52,157.95,157.91,6.3326]
[1723178687858,18.52,157.94,157.89,34.353]
[1723178688071,18.52,157.93,157.89,15.833]
[1723178688235,18.52,157.92,157.89,15.833]
[1723178688858,24.8519,157.93,157.89,15.833]
[1723178689568,18.52,157.93,157.89,22.1664]
[1723178689737,18.52,157.92,157.89,15.833]
[1723178689941,18.52,157.91,157.89,15.833]
[1723178690150,18.52,157.91,157.88,15.1775]
[1723178690346,18.52,157.91,157.88,21.511]
[1723178690551,18.52,157.91,157.88,15.1775]
[1723178690868,18.52,157.92,157.88,15.1775]
[1723178691443,6.3314,157.95,157.89,22.1671]
[1723178691638,18.52,157.93,157.89,22.1671]
[1723178692345,18.52,157.93,157.9,6.3331]
[1723178692567,18.52,157.92,157.89,22.1671]
[1723178697550,18.52,157.93,157.9,6.3331]
[1723178698168,18.52,157.93,157.89,15.8337]
[1723178698358,18.52,157.92,157.89,22.1672]
[1723178700165,18.45780984,158.0,157.89,15.8337]
[1723178700378,18.45780984,158.0,157.91,6.3327]
[1723178700379,18.52,157.93,157.91,6.3327]
[1723178700755,18.52,157.93,157.89,22.1671]
[1723178700956,18.52,157.93,157.88,15.1775]
[1723178700957,18.52,157.9,157.88,15.1775]
[1723178701200,18.52,157.89,157.83,31.7741]
[1723178701388,6.3322,157.93,157.88,6.3339]
[1723178701571,18.52,157.91,157.89,6.3333]
[1723178702194,6.3315,157.94,157.89,6.3333]
[1723178702374,18.52,157.92,157.89,6.3333]
[1723178702793,18.52,157.92,157.9,6.333]
[1723178703476,18.52,157.92,157.89,6.3334]
[1723178705779,6.3315,157.94,157.89,6.3334]
[1723178706113,38.52,157.93,157.89,6.3334]
[1723178706586,6.3307,157.96,157.91,6.3327]
[1723178706792,18.52,157.94,157.91,6.3327]
[1723178708289,18.52,157.95,157.92,6.3322]
[1723178708485,18.52,157.95,157.91,6.3326]
[1723178709204,6.3302,157.98,157.93,18.52]
[1723178709405,18.52,157.99,157.94,18.52]
[1723178709704,18.52,157.99,157.89,47.9258]
[1723178709705,18.52,157.99,157.95,18.52]
[1723178710289,18.52,157.99,157.94,18.52]
[1723178710481,31.25089725,158.04,157.94,18.52]
[1723178710695,24.94079725,158.04,157.96,18.52]
[1723178710881,18.52,158.01,157.96,24.8506]
[1723178711194,18.52,157.98,157.95,61.4484]
[1723178711397,18.52,157.96,157.91,15.4918]
[1723178711580,18.52,157.92,157.87,15.4918]
[1723178711794,18.52,157.9,157.87,15.4918]
[1723178711971,18.52,157.88,157.83,21.8276]
[1723178712304,18.52,157.87,157.83,21.8276]
[1723178712598,24.8547,157.86,157.83,15.4918]
[1723178712804,18.52,157.84,157.83,15.4918]
[1723178713105,24.8555,157.84,157.79,21.8292]
[1723178713288,18.52,157.82,157.79,21.8292]
[1723178713487,6.3355,157.84,157.78,15.8448]
[1723178713488,18.52,157.8,157.78,15.8448]
[1723178713692,27.03,157.82,157.78,15.8448]
[1723178714913,27.03,157.84,157.8,6.3367]
[1723178715091,33.3647,157.86,157.78,42.8748]
[1723178715404,20.0,157.85,157.8,6.3371]
[1723178715605,53.3651,157.85,157.79,6.3375]
[1723178716204,27.03,157.84,157.79,6.3375]
[1723178716512,53.3651,157.85,157.79,6.3375]
[1723178716893,27.03,157.83,157.78,22.1827]
[1723178718021,27.03,157.83,157.79,6.3372]
[1723178718309,27.03,157.83,157.78,15.8448]
[1723178719096,27.03,157.83,157.8,6.3371]
[1723178719612,27.03,157.83,157.79,6.3375]
[1723178719998,27.03,157.83,157.78,22.1826]
[1723178720198,27.03,157.81,157.77,6.1248]
[1723178720588,27.03,157.8,157.75,6.3389]
[1723178721119,33.3672,157.8,157.74,37.6794]